Cogmind - Beta 9.1 @@@ ROGUE MODE // 2019.10.30 @ 14:11:40 Player: Alexbot Result: Self-destructed Performance ------------- Evolutions (1) 500 Regions Visited (4) 800 Robots Destroyed (6) 30 Value Destroyed (183) 183 Prototype IDs (0) 0 Alien Tech Used (0) 0 Bonus (200) 200 TOTAL SCORE: 1713 Bonus ------- Pacifist 200 Cogmind --------- Core Integrity 377/400 Matter 290/300 Energy 160/160 System Corruption 2% Temperature Cool (0) Location -9/Storage Parts ------- Power (1) Light Nuclear Core Propulsion (2) Light Treads Wheel Utility (4) Improved Heat Sink Disposable Heat Sink Large Storage Unit Signal Interpreter Weapon (2) Assault Rifle Improved Light Cannon Inventory (10) Ion Engine Light Treads EM Shotgun Improved Medium Laser Improved Light Cannon Improved Light Cannon Improved Light Cannon Mini Grenade Launcher Mini Grenade Launcher Datajack Peak State ------------ Power Light Nuclear Core Propulsion Light Treads Wheel Utility Improved Heat Sink Disposable Heat Sink Large Storage Unit Signal Interpreter Weapon Assault Rifle Improved Light Cannon Inventory Ion Engine Light Treads Improved Medium Laser Improved Light Cannon Improved Light Cannon Improved Light Cannon Mini Grenade Launcher Mini Grenade Launcher Datajack [Rating: 16] Favorites ----------- Power Light Ion Engine Engine Light Ion Engine Power Core Light Nuclear Core Propulsion Wheel Treads Light Treads Wheel Wheel Utility Small Storage Unit Device Disposable Heat Sink Storage Small Storage Unit Processor Signal Interpreter Weapon Assault Rifle Energy Gun Medium Laser Ballistic Gun Assault Rifle Ballistic Cannon Improved Light Cannon Build | -11 -10 -10 -9 -9 ------- Run | Scr Mat Min Mat Sto Slots Evolved 2 | . . . 2 . Power . | . . . . . Propulsion . | . . . . . Utility 2 | . . . 2 . Weapon . | . . . . . Parts Attached 13 | 6 . . 7 . Power 2 | 1 . . 1 . Engine 1 | 1 . . . . Core 1 | . . . 1 . Reactor . | . . . . . Propulsion 3 | 2 . . 1 . Treads 1 | . . . 1 . Leg . | . . . . . Wheel 2 | 2 . . . . Hover . | . . . . . Flight . | . . . . . Utility 5 | 1 . . 4 . Device 2 | . . . 2 . Storage 2 | 1 . . 1 . Processor 1 | . . . 1 . Hackware . | . . . . . Protection . | . . . . . Artifact . | . . . . . Weapon 3 | 2 . . 1 . Energy Gun 1 | 1 . . . . Energy Cannon . | . . . . . Ballistic Gun 1 | 1 . . . . Ballistic Cannon 1 | . . . 1 . Launcher . | . . . . . Special Weapon . | . . . . . Impact Weapon . | . . . . . Slashing Weapon . | . . . . . Piercing Weapon . | . . . . . Special Melee Weapon . | . . . . . Unidentified Prototypes . | . . . . . Parts Lost 2 | . . . 2 . Power . | . . . . . Propulsion 1 | . . . 1 . Utility . | . . . . . Weapon 1 | . . . 1 . Highest Loss Streak 2 | . . . 2 . Average Slot Usage (%) 84 | . 85 85 83 . Engine 9 | . 14 14 5 . Core 3 | . . . 5 . Wheel 24 | . 28 28 20 . Device 7 | . . . 13 . Storage 12 | . 14 14 11 . Processor 2 | . . . 5 . Energy Gun 11 | . 14 14 9 . Ballistic Gun 12 | . 14 14 11 . Naked Turns . | . . . . . Heaviest Build 29 | 11 11 11 29 . Greatest Support 20 | 20 20 20 20 . Greatest Overweight (x) 2 | . . . 2 . Average Overweight (x) . | . . . . . Largest Inventory Capacity 10 | 6 6 6 10 . Average Capacity 6 | 5 6 6 7 . Most Carried 10 | 4 5 5 10 . Average Carried 5 | 2 4 5 7 . Final Capacity 10 | 6 6 6 10 10 Final Carried 10 | 4 5 5 10 10 Class Distribution -------------------- 100% | Mutant Dominant Class ---------------- Mutant | -10/Materials Mutant | -10/Mines Mutant | -9/Materials Mutant | -9/Storage Resources | -11 -10 -10 -9 -9 ----------- Run | Scr Mat Min Mat Sto Matter Collected 368 | 221 . . 147 . Remotely . | . . . . . Salvage Created 225 | . . . 225 . Parts 15 | . . . 15 . Haulers Intercepted . | . . . . . Recyclers Shooed . | . . . . . Parts Field Recycled . | . . . . . Retrieved Matter . | . . . . . Parts Self-Destructed . | . . . . . Prevented . | . . . . . Kills | -11 -10 -10 -9 -9 ------- Run | Scr Mat Min Mat Sto Combat Hostiles Destroyed 4 | . . . 4 . Guns 3 | . . . 3 . Cannons 1 | . . . 1 . Classes Destroyed 4 | . . . 4 . Builder 1 | . . . 1 . Operator 1 | . . . 1 . Grunt 3 | . . . 3 . Duelist 1 | . . . 1 . Best Kill Streak 3 | . . . 3 . Combat Bots Only 2 | . . . 2 . Max Kills in Single Turn 1 | . . . 1 . Gunslinging . | . . . . . Exploded . | . . . . . Melee . | . . . . . Uniques/NPCs Destroyed . | . . . . . Combat | -11 -10 -10 -9 -9 -------- Run | Scr Mat Min Mat Sto Damage Taken 204 | . . . 204 . Core 23 | . . . 23 . Absorbed by Shields . | . . . . . Core Remaining (%) 100 | 100 . 100 . . Volleys Fired 18 | . . . 18 . Largest 2 | . . . 2 . Hottest 70 | . . . 70 . Shots Fired 35 | . . . 35 . Gun 34 | . . . 34 . Cannon 1 | . . . 1 . Launcher . | . . . . . Special . | . . . . . Kinetic 19 | . . . 19 . Thermal 16 | . . . 16 . Explosive . | . . . . . Electromagnetic . | . . . . . Robot Hit Streak 9 | . . . 9 . Robot Miss Streak 2 | . . . 2 . Penetration Max . | . . . . . Secondary Targets 2 | . . . 2 . Max Gunslinging Chain 1 | . . . 1 . Shots Hit Robots 23 | . . . 23 . Core Hits 13 | . . . 13 . Critical Hits 1 | . . . 1 . Critical Kills . | . . . . . Critical Parts Destroyed 1 | . . . 1 . Melee Attacks . | . . . . . Impact . | . . . . . Slashing . | . . . . . Piercing . | . . . . . Sneak Attacks . | . . . . . Combat Hostiles . | . . . . . Follow-up Attacks . | . . . . . Damage Inflicted 302 | . . . 302 . Guns 281 | . . . 281 . Cannons 21 | . . . 21 . Explosions . | . . . . . Melee . | . . . . . Ramming . | . . . . . Kinetic 163 | . . . 163 . Thermal 139 | . . . 139 . Explosive . | . . . . . Electromagnetic . | . . . . . Impact . | . . . . . Slashing . | . . . . . Piercing . | . . . . . Highest Corruption 2 | . . . 2 . Average Corruption 1 | . . . 1 . Corruption Purged . | . . . . . Effects 1 | . . . 1 . Data Loss (minor) 1 | . . . 1 . Overload Shots . | . . . . . Overflow Damage . | . . . . . Projectiles . | . . . . . Explosions . | . . . . . Melee . | . . . . . Knockbacks . | . . . . . Impact . | . . . . . Kinetic . | . . . . . Secondary . | . . . . . Self-Inflicted Damage . | . . . . . Shots . | . . . . . Rammed . | . . . . . Targets Rammed . | . . . . . Kicked . | . . . . . Crushed . | . . . . . Highest Temperature 24 | . . . 24 . Average Temperature 17 | . . . 17 . Received Heat Transfer 42 | . . . 42 . Siege Activations . | . . . . . Robots Corrupted . | . . . . . Combat Hostiles . | . . . . . Parts Fried . | . . . . . Impact Corruptions . | . . . . . Robots Melted . | . . . . . Combat Hostiles . | . . . . . Parts Melted . | . . . . . Heat Transferred 407 | . . . 407 . Parts Sabotaged . | . . . . . Parts Stolen . | . . . . . Parts Stripped . | . . . . . Power Chain Reactions . | . . . . . Missiles Intercepted . | . . . . . Alert | -11 -10 -10 -9 -9 ------- Run | Scr Mat Min Mat Sto Peak Influence 128 | . . . 128 . Average Influence 30 | . . . 64 . Maximum Alert Level . | . . . . . Low Security (%) 100 | . . . . . Level 1 . | . . . . . Level 2 . | . . . . . Level 3 . | . . . . . Level 4 . | . . . . . Level 5 . | . . . . . High Security . | . . . . . Max Security . | . . . . . Squads Dispatched 1 | . . . 1 . Investigation . | . . . . . Extermination . | . . . . . Reinforcement 1 | . . . 1 . Assault . | . . . . . Garrison . | . . . . . Intercept . | . . . . . Construction Impeded . | . . . . . Haulers Reinforced . | . . . . . Stealth | -11 -10 -10 -9 -9 --------- Run | Scr Mat Min Mat Sto Distress Signals . | . . . . . Communications Jammed . | . . . . . Distress Signals . | . . . . . Times Spotted 6 | . . . 6 . Peak Tracking Total 2 | . . . 2 . Tactical Retreats . | . . . . . Traps | -11 -10 -10 -9 -9 ------- Run | Scr Mat Min Mat Sto Traps Triggered 2 | . . . 2 . Indirectly . | . . . . . Trap Hack Attempts . | . . . . . Triggered . | . . . . . Disarmed . | . . . . . Reprogrammed . | . . . . . Reused . | . . . . . Traps Extracted . | . . . . . Installed . | . . . . . Triggered . | . . . . . Machines | -11 -10 -10 -9 -9 ---------- Run | Scr Mat Min Mat Sto Machines Disabled . | . . . . . Max in Single Turn . | . . . . . Machines Sabotaged . | . . . . . Garrisons Compromised . | . . . . . Overloaded Fab Kills . | . . . . . Fab Network Shutdowns . | . . . . . Hacking | -11 -10 -10 -9 -9 --------- Run | Scr Mat Min Mat Sto Machines Accessed 1 | . . . 1 . Terminals 1 | . . . 1 . Fabricators . | . . . . . Repair Stations . | . . . . . Recycling Units . | . . . . . Scanalyzers . | . . . . . Garrison Access . | . . . . . Total Hacks 1 | . . . 1 . Successful 1 | . . . 1 . Failed . | . . . . . Catastrophic . | . . . . . Database Lockouts . | . . . . . Manual 1 | . . . 1 . Terminals 1 | . . . 1 . Fabricators . | . . . . . Repair Stations . | . . . . . Recycling Units . | . . . . . Scanalyzers . | . . . . . Garrison Access . | . . . . . Terminal Hacks 1 | . . . 1 . Branch Access Points 1 | . . . 1 . Fabricator Hacks . | . . . . . Repair Station Hacks . | . . . . . Recycling Unit Hacks . | . . . . . Scanalyzer . | . . . . . Garrison Access Hacks . | . . . . . Unauthorized Hacks . | . . . . . Terminals . | . . . . . Fabricators . | . . . . . Repair Stations . | . . . . . Recycling Units . | . . . . . Scanalyzers . | . . . . . Garrison Access . | . . . . . Data Cores Recovered . | . . . . . Used . | . . . . . Hacking Detections . | . . . . . Full Trace Events . | . . . . . Feedback Events . | . . . . . Feedback Blocked . | . . . . . Robot Schematics Acquired . | . . . . . Robots Built . | . . . . . Matter . | . . . . . Time . | . . . . . Total Robot Build Rating . | . . . . . Part Schematics Acquired . | . . . . . Parts Built . | . . . . . Matter . | . . . . . Time . | . . . . . Total Part Build Rating . | . . . . . Parts Repaired . | . . . . . Time . | . . . . . Parts Recycled . | . . . . . Recycled Matter . | . . . . . Retrieved Matter . | . . . . . Retrieved Components . | . . . . . Parts Scanalyzed . | . . . . . Part Schematics Acquired . | . . . . . Parts Damaged . | . . . . . Bothacking | -11 -10 -10 -9 -9 ------------ Run | Scr Mat Min Mat Sto Used RIF Installer . | . . . . . Robots Hacked . | . . . . . Non-combat . | . . . . . Combat . | . . . . . Robot Hacks Applied . | . . . . . Relay Couplers Released . | . . . . . Robots Rewired . | . . . . . Allies Hacked . | . . . . . Hacks Repelled . | . . . . . Allies | -11 -10 -10 -9 -9 -------- Run | Scr Mat Min Mat Sto Total Allies . | . . . . . Largest Group . | . . . . . Highest-Rated Group . | . . . . . Highest-Rated Ally . | . . . . . Total Orders . | . . . . . Ally Attacks . | . . . . . Total Damage . | . . . . . Kills . | . . . . . Allies Corrupted . | . . . . . Allies Melted . | . . . . . Intel | -11 -10 -10 -9 -9 ------- Run | Scr Mat Min Mat Sto Robot Analysis Total . | . . . . . Derelict Logs Recovered 1 | . . 1 . . Drone Launches . | . . . . . Drone Recoveries . | . . . . . Exploration | -11 -10 -10 -9 -9 ------------- Run | Scr Mat Min Mat Sto Turns Passed 435 | 43 28 155 209 . Spaces Moved 422 | 38 34 193 157 . Core 1 | 1 . . . . Treads . | . . . . . Legs . | . . . . . Wheels 421 | 37 34 193 157 . Hover . | . . . . . Flight . | . . . . . Fastest Speed 50 | 50 80 80 80 . Average Speed 81 | 79 80 80 85 . Slowest Speed 100 | 80 80 80 100 . Overloaded Moves . | . . . . . Propulsion Burnouts . | . . . . . Robots Hopped . | . . . . . Cave-ins Triggered . | . . . . . Exploration Rate (%) 17 | 4 11 49 23 2 Regions Visited 4 Branch Regions 2 Pre-discovered Areas . | . . . . . Known Exits Taken 2 | . . 1 1 . Unknown Exits Taken 2 | 1 1 . . . Scrap Searched . | . . . . . Spaces Dug . | . . . . . Terrain Destroyed . | . . . . . Melee . | . . . . . Projectile . | . . . . . AOE . | . . . . . Actions | -11 -10 -10 -9 -9 --------- Run | Scr Mat Min Mat Sto Total 472 | 47 34 193 198 . Wait . | . . . . . Move 419 | 37 33 193 156 . Hop . | . . . . . Pick Up 16 | 4 1 . 11 . Fast Attach 9 | 6 . . 3 . Attach 3 | . . . 3 . Detach 1 | . . . 1 . Swap 1 | . . . 1 . Drop 5 | . . . 5 . Fire 18 | . . . 18 . Melee . | . . . . . Ram . | . . . . . Kick . | . . . . . Crush . | . . . . . Escape Stasis . | . . . . . Rewire . | . . . . . Trap . | . . . . . Miscellaneous . | . . . . . Route ------- -11/Scrapyard -10/Materials -10/Mines -9/Materials (discovered 4 exits: Min x2 / *Sto x2) -9/Storage History --------- Turn | Location | Event 17 | -11/Scrapyard | Discovered new exit (range 15) 44 | -11/Scrapyard | Entered Materials 54 | -10/Materials | Discovered new exit (range 16) 72 | -10/Materials | Entered Mines 124 | -10/Mines | Identified exit to Materials 227 | -10/Mines | Entered Materials 227 | -9/Materials | Evolved 2 slots: Utility x2 319 | -9/Materials | Build established: Mutant 362 | -9/Materials | Identified exit to Mines 362 | -9/Materials | Identified exit to Storage 436 | -9/Materials | Entered Storage 436 | -9/Storage | Self-destructed Last Messages --------------- 00384_ System corrupted: Component data lost. 00389_ U-05 Engineer lays Concrete. 00397_ U-05 Engineer destroyed. 00398_ R-06 Scavenger collects Wheel. 00402_ R-06 Scavenger collects Lgt. Ion Engine. 00403_ L-31 Rogue suffers critical hit. 00403_ Destroyed Imp. Aluminum Leg. 00406_ G-34 Mercenary destroyed. 00406_ Switching to secondary target: L-31 Rogue. 00406_ R-06 Scavenger collects Aluminum Leg. 00409_ R-06 Scavenger collects Wheel. 00410_ Wheel destroyed. 00410_ Med. Laser destroyed. 00415_ L-31 Rogue destroyed. 00418_ Acquired 48 matter. 00419_ Acquired 10 matter. 00430_ Acquired Prototype Energy Gun. 00435_ Acquired EM Shotgun. LOCATION=STORAGE GOAL=ESCAPE Map ----- +----------------------------------------------------+ | | | | | | | | | | | | | | | | | | | | | | | | | | | | | | | | | | | ??????????????????????????????????? | | ??????????????????????????????????? | | ??????????????????????????????????? | | ??????????????????????????????????? | | ??????????????????????????????????? | | ??????????????????????????????????? | | ???????????????????????#####??????? | | ???????????????????????# #??????? | | ???????????????????????# @ #??????? | | ???????????????????????# #??????? | | ???????????????????????# #??????? | | ???????????????????????# #??????? | | ???????????????????????+ +??????? | | ???????????????????????# #??????? | | ???????????????????????# #??????? | | ???????????????????????# #??????? | | ???????????????????????# #??????? | | ??????????????????????? ??????? | | ??????????????????????? ??????? | | ??????????????????????? ??????? | | ??????????????????????? ??????? | | ??????????????????????? ??????? | | ???????????????????????# #??????? | | ???????????????????????? ???????? | | ??????????????????????????????????? | | ??????????????????????????????????? | | ??????????????????????????????????? | | ??????????????????????????????????? | | ??????????????????????????????????? | | ??????????????????????????????????? | | ??????????????????????????????????? | | ??????????????????????????????????? | | ??????????????????????????????????? | +----------------------------------------------------+ Best States ------------- Heat Dissipation 42 Coolant Potential 50 Energy Generation 14 Energy Capacity 160 Matter Stores 300 Matter Capacity 300 Sight Range 16 Terrain Scan Density 10 Evasion (%) 44 Item Schematics ----------------- None Robot Schematics ------------------ None Fabricated ------------ Nothing Alien Tech Used ----------------- None Achievements -------------- None Challenges ------------ None Game ------ Seed ProtonReflectiveCycler Manual? 0 Play Time 00:04:55 Cumulative 664.7 hours Start 2019.10.30 @ 14:05:19 End 2019.10.30 @ 14:11:40 Sessions 1 Manual Loads 0 Difficulty Rogue Special Mode None Game No. 163 Rogue 163 Adventurer 0 Explorer 0 Win Type - Total 29 Types 21/0/2/3/2/0/1 Lore% 96 Gallery% 97 Achievement% 90 Wizard Run 0 Options --------- ASCII 0 Keyboard 1 Movement Numpad Keybinds 0 Fullscreen 1 Font 18/SmallcapsGlow Map View 76x50 Tactical HUD 1 Map Filters NONE Filters NONE Steam 1 RUN: e6e2a26a-9814-460b-94d6-e05377dbea27